bitfinex/quotes_SOLUSD_20260125
["timestamp","ask_amount","ask_price","bid_price","bid_amount"]
[1769313124367,3.18781503,126.49,126.47,2.14022832]
[1769313125776,2.58781503,126.49,126.47,2.14022832]
[1769313127353,2.58781503,126.49,126.45,10.34999331]
[1769313127553,3.08781503,126.49,126.45,10.34999331]
[1769313128581,3.08781503,126.49,126.45,10.35188894]
[1769313128787,3.08781503,126.49,126.46,2.14022832]
[1769313129083,3.08781503,126.49,126.46,10.35144707]
[1769313131456,3.08781503,126.49,126.47,2.14022832]
[1769313132880,3.08781503,126.49,126.47,2.14067329]
[1769313136483,3.08781503,126.49,126.47,2.45241587]
[1769313139289,3.08781503,126.49,126.47,10.35940941]
[1769313140884,2.58781503,126.49,126.47,10.35940941]
[1769313142099,2.58781503,126.49,126.47,10.04766683]
[1769313148101,2.58781503,126.49,126.47,10.36813171]
[1769313148401,2.14067329,126.52,126.47,10.36813171]
[1769313148402,2.60824169,126.51,126.47,10.36813171]
[1769313149390,3.20824169,126.51,126.47,10.36813171]
[1769313150003,3.20824169,126.51,126.47,10.04766683]
[1769313150302,3.20824169,126.51,126.47,10.3696019]
[1769313150806,2.60824169,126.51,126.47,10.3696019]
[1769313153994,3.07809726,126.5,126.47,10.3696019]
[1769313156912,3.07809726,126.5,126.47,2.46260836]
[1769313157112,3.07809726,126.5,126.46,10.37552837]
[1769313158107,3.07809726,126.5,126.45,8.23613704]
[1769313158415,3.07809726,126.5,126.46,7.90759922]
[1769313158599,3.07809726,126.5,126.46,10.04827251]
[1769313158989,3.07809726,126.5,126.47,10.04768168]
[1769313159621,0.5,126.5,126.48,0.32944106]
[1769313159807,3.07809726,126.5,126.48,0.32944106]
[1769313162621,0.16867206,126.5,126.47,10.04768168]
[1769313162919,0.16867206,126.5,126.48,2.14067329]
[1769313163312,2.65360045,126.51,126.48,2.14067329]
[1769313173225,2.65360045,126.51,126.48,10.0470512]
[1769313176628,2.65360045,126.53,126.5,2.14067329]
[1769313176926,2.65360045,126.53,126.49,2.14067329]
[1769313178828,2.65360045,126.53,126.49,10.04631835]
[1769313179211,2.65360045,126.53,126.5,2.14067329]
[1769313187734,2.65360045,126.52,126.45,19.76964611]
[1769313187927,2.65360045,126.51,126.47,2.14067329]
[1769313188936,2.65360045,126.51,126.47,10.04736349]
[1769313192737,2.65360045,126.51,126.45,19.76964611]
[1769313192921,2.65360045,126.51,126.47,2.14067329]
[1769313195145,2.65360045,126.51,126.48,2.14059351]
[1769313199749,2.65360045,126.51,126.48,10.04689702]
[1769313206952,2.65360045,126.51,126.47,10.04732415]
[1769313215371,2.65360045,126.51,126.46,10.04793143]
[1769313216866,2.65360045,126.51,126.47,2.14059351]
[1769313220460,2.65360045,126.51,126.46,2.14059351]
[1769313220660,2.65360045,126.51,126.47,2.14059351]
[1769313229469,2.65360045,126.51,126.46,7.90726126]
[1769313229673,2.65360045,126.51,126.47,2.14059351]
[1769313236960,2.65360045,126.51,126.47,10.04725581]
[1769313239279,2.65360045,126.51,126.48,2.14059351]
[1769313242478,2.65360045,126.51,126.47,10.04709756]
[1769313242678,2.65360045,126.52,126.47,10.04709756]
[1769313242871,2.65360045,126.52,126.48,2.14059351]
[1769313248291,2.65360045,126.51,126.47,10.04709756]
[1769313254995,2.65360045,126.51,126.47,2.14025011]
[1769313260295,2.65360045,126.51,126.47,10.04691354]
[1769313268803,2.65360045,126.51,126.46,2.14025011]
[1769313269288,2.65360045,126.51,126.47,2.14025011]
[1769313272406,2.65360045,126.51,126.47,10.04700334]
[1769313275897,2.65360045,126.51,126.48,2.14025011]
[1769313279106,2.65360045,126.51,126.47,7.90675323]
[1769313279299,2.65360045,126.51,126.48,2.14025011]
[1769313285809,2.65360045,126.52,126.49,2.14025011]
[1769313316942,2.65360045,126.52,126.49,2.13988365]
[1769313317940,2.65360045,126.52,126.48,7.90628373]
[1769313318142,2.65360045,126.52,126.49,2.13988365]
[1769313324147,2.41360045,126.52,126.49,2.34211512]
[1769313342677,2.41360045,126.52,126.5,2.13988365]
[1769313343269,2.53360045,126.54,126.5,2.34865601]
[1769313343473,2.53360045,126.54,126.51,2.34865601]
[1769313343769,2.53360045,126.54,126.51,2.13988365]
[1769313351077,2.53360045,126.54,126.51,2.35189674]
[1769313351372,21.94,126.55,126.53,2.13988365]
[1769313351373,24.47360045,126.55,126.53,2.13988365]
[1769313351766,2.53360045,126.55,126.53,2.13988365]
[1769313352277,2.53360045,126.55,126.52,2.35189674]
[1769313353778,2.53360045,126.55,126.53,2.13988365]
[1769313360854,2.53360045,126.57,126.53,2.35554835]
[1769313361286,2.53360045,126.57,126.53,2.13988365]
[1769313362163,2.53360045,126.57,126.54,0.2160072]
[1769313362363,2.53360045,126.57,126.54,2.35589085]
[1769313363175,2.53360045,126.57,126.55,2.13988365]
[1769313364556,0.2,126.6,126.56,4.2797673]
[1769313364758,2.7866971,126.61,126.59,2.13988365]
[1769313365790,0.2,126.61,126.6,2.13988365]
[1769313366294,0.2,126.61,126.56,21.89866849]
[1769313366295,2.83360045,126.62,126.57,2.13988365]
[1769313366482,2.5866971,126.61,126.57,2.15786476]
[1769313366985,2.5866971,126.61,126.57,4.29774841]
[1769313372998,2.5866971,126.61,126.58,2.16413579]
[1769313381598,2.5866971,126.61,126.58,4.30113255]
[1769313383597,2.5866971,126.61,126.59,2.18244595]
[1769313384683,2.5866971,126.61,126.59,4.31944271]
[1769313385602,0.2,126.62,126.6,4.32099476]
[1769313387704,0.2,126.63,126.61,4.32554478]
[1769313387904,2.72820514,126.63,126.61,4.32554478]
[1769313388097,2.72820514,126.63,126.61,2.13699676]
[1769313388405,2.72820514,126.63,126.6,12.22435616]
[1769313389593,2.72820514,126.63,126.6,10.03580814]
[1769313389905,2.72820514,126.63,126.61,2.19149493]
[1769313390304,0.2,126.63,126.61,2.19149493]
[1769313392609,2.72820514,126.63,126.61,2.19149493]
[1769313392809,2.72820514,126.63,126.6,12.2329965]
[1769313396611,2.72820514,126.63,126.6,12.23843283]
[1769313401108,2.72820514,126.63,126.6,10.03580814]
[1769313401337,2.72820514,126.63,126.61,2.20781552]
[1769313402828,2.72820514,126.63,126.6,12.24613049]
[1769313403728,2.72820514,126.63,126.61,2.13699676]
[1769313404320,2.72820514,126.63,126.61,10.03517393]
[1769313406642,2.72820514,126.63,126.61,7.89817717]
[1769313407741,1.72820514,126.63,126.61,7.89817717]
[1769313409826,1.72820514,126.63,126.61,10.03517393]
[1769313410147,0.72820514,126.63,126.61,10.03517393]
[1769313411950,0.72820514,126.63,126.61,12.43189018]
[1769313412853,0.72820514,126.63,126.61,10.29489342]
[1769313415746,0.72820514,126.63,126.61,12.43189018]
[1769313415951,0.72820514,126.63,126.61,10.29489342]
[1769313420358,0.72820514,126.63,126.61,12.43189018]
[1769313421662,0.2,126.64,126.61,12.43189018]
[1769313421663,2.67665395,126.64,126.61,12.43189018]
[1769313421840,2.67665395,126.64,126.61,10.29489342]
[1769313425750,0.2,126.64,126.62,2.42883205]
[1769313426266,2.70276242,126.64,126.62,2.42883205]
[1769313438684,2.70276242,126.64,126.61,12.70224401]
[1769313438978,2.70276242,126.64,126.61,12.70091952]
[1769313440680,0.2,126.64,126.62,2.66707008]
[1769313441678,2.76288974,126.64,126.62,2.66707008]
[1769313442458,2.76288974,126.64,126.62,4.80274235]
[1769313442782,2.76288974,126.64,126.62,2.13567227]
[1769313443183,2.76288974,126.64,126.62,4.80274235]
[1769313443980,0.2,126.64,126.62,4.80274235]
[1769313444684,2.76288974,126.64,126.62,4.80274235]
[1769313452595,2.76288974,126.64,126.62,2.66707008]
[1769313457998,2.76288974,126.64,126.62,4.80274235]
[1769313458772,2.76288974,126.64,126.62,2.13567227]
[1769313460302,2.76288974,126.64,126.62,4.73005549]
[1769313464906,2.76288974,126.64,126.62,2.59438322]
[1769313466504,2.76288974,126.64,126.61,12.62823266]
[1769313470611,2.76288974,126.64,126.62,4.73005549]
[1769313479018,2.76288974,126.64,126.62,2.59438322]
[1769313479612,2.76288974,126.64,126.61,10.49256039]
[1769313479819,2.76288974,126.64,126.61,12.62823266]
[1769313480718,2.76288974,126.64,126.61,4.73005549]
[1769313482409,2.76288974,126.64,126.62,2.59438322]
[1769313484919,2.64821548,126.63,126.59,2.53527891]
[1769313485106,2.64821548,126.62,126.58,4.67095118]
[1769313485417,2.64821548,126.61,126.58,2.53527891]
[1769313485923,2.64821548,126.61,126.58,10.43504296]
[1769313486098,2.64821548,126.61,126.59,2.53527891]
[1769313499139,2.64821548,126.61,126.59,10.43476629]
[1769313499525,2.64821548,126.61,126.59,12.57043856]
[1769313499726,2.74226151,126.63,126.6,4.73842696]
[1769313499919,2.74226151,126.63,126.61,4.73842696]
[1769313500119,2.74226151,126.63,126.62,2.13567227]
[1769313500936,2.74226151,126.63,126.61,4.73834191]
[1769313503548,2.74226151,126.63,126.61,2.60275469]
[1769313503729,2.74226151,126.63,126.61,4.73834191]
[1769313506242,2.94226151,126.64,126.61,4.73834191]
[1769313511640,0.2,126.64,126.62,2.60275469]
[1769313511827,0.2,126.64,126.63,2.60275469]
[1769313512543,0.2,126.64,126.62,4.73834191]
[1769313525461,0.2,126.64,126.63,2.51269111]
[1769313526361,0.2,126.64,126.62,12.54587328]
[1769313526958,0.2,126.64,126.62,4.64827833]
[1769313527859,2.78380462,126.64,126.62,2.13558722]
[1769313528054,2.78380462,126.64,126.61,12.54630393]
[1769313531172,2.78380462,126.64,126.62,2.51269111]
[1769313531661,2.78380462,126.64,126.61,2.51269111]
[1769313531841,2.58380462,126.63,126.6,38.51487173]
[1769313534667,2.58380462,126.63,126.6,41.02756284]
[1769313534871,2.58380462,126.63,126.6,43.16315006]
[1769313538763,2.58380462,126.63,126.61,2.51269111]
[1769313541663,2.58380462,126.63,126.6,43.16315006]
[1769313546766,2.58380462,126.63,126.61,2.6166442]
[1769313551187,2.58380462,126.63,126.6,43.26710315]
[1769313552888,2.58380462,126.63,126.6,40.65045895]
[1769313553096,2.58380462,126.63,126.6,43.25725879]
[1769313555090,2.58380462,126.63,126.61,2.60679984]
[1769313558292,2.58380462,126.63,126.6,40.65045895]
[1769313558471,2.58380462,126.63,126.6,43.25725879]
[1769313560908,2.58380462,126.63,126.6,43.25762346]
[1769313562800,2.58380462,126.63,126.61,2.60679984]
[1769313564299,2.52380462,126.63,126.6,43.25762346]
[1769313566009,2.52380462,126.63,126.6,12.64135828]
[1769313581804,2.52380462,126.63,126.6,10.03455844]
[1769313582010,2.52380462,126.63,126.59,4.68215197]
[1769313583612,2.52380462,126.63,126.59,12.58135433]
[1769313586911,2.52380462,126.63,126.6,2.54620008]
[1769313587216,2.63547892,126.6,126.58,27.86876066]
[1769313590308,2.63547892,126.6,126.57,4.68215197]
[1769313592217,2.63547892,126.6,126.57,2.54620008]
[1769313598303,2.63547892,126.6,126.57,4.68215197]
[1769313601030,2.63547892,126.6,126.57,2.54620008]
[1769313605931,2.63547892,126.6,126.56,13.0638599]
[1769313606135,2.76070675,126.59,126.56,0.30598425]
[1769313607233,2.76070675,126.59,126.56,3.026844]
[1769313609433,2.76070675,126.59,126.56,0.30598425]
[1769313610333,2.13595189,126.59,126.54,31.60929153]
[1769313610532,54.50411577,126.63,126.53,4.85681164]
[1769313610533,2.76070675,126.57,126.53,4.85681164]
[1769313610835,2.76070675,126.57,126.53,12.75971682]
[1769313611021,2.76070675,126.57,126.53,10.62376493]
[1769313611418,2.76070675,126.57,126.53,12.75971682]
[1769313611623,2.76070675,126.55,126.52,10.62432979]
[1769313611814,2.76070675,126.55,126.52,2.72085975]
[1769313612015,2.76070675,126.55,126.52,4.85681164]
[1769313612827,2.76070675,126.55,126.53,2.68242162]
[1769313614918,2.76070675,126.55,126.52,2.68242162]
[1769313615326,2.55402241,126.54,126.52,2.68242162]
[1769313618336,2.55402241,126.54,126.52,4.81837351]
[1769313619871,2.55402241,126.57,126.52,4.81837351]
[1769313620074,2.55402241,126.57,126.53,2.13595189]
[1769313620871,2.55402241,126.57,126.53,2.1385646]
[1769313621537,2.1385646,126.57,126.52,12.72471939]
[1769313621859,2.55402241,126.56,126.52,12.72471939]
[1769313623162,2.55402241,126.56,126.53,2.68242162]
[1769313634271,2.569992,126.58,126.55,4.74941206]
[1769313634576,2.569992,126.58,126.56,2.1385646]
[1769313636851,2.569992,126.58,126.55,4.74941206]
[1769313644283,2.569992,126.58,126.56,2.61084746]
[1769313647485,2.569992,126.58,126.56,4.74941206]
[1769313647673,2.569992,126.59,126.56,4.74941206]
[1769313651075,2.569992,126.6,126.57,4.74941206]
[1769313656599,2.569992,126.61,126.58,4.74941206]
[1769313658394,2.569992,126.61,126.58,2.61084746]
[1769313660302,2.569992,126.61,126.58,4.74941206]
[1769313661378,2.569992,126.61,126.59,2.61084746]
[1769313661579,2.569992,126.62,126.6,4.74941206]
[1769313662175,2.569992,126.62,126.59,2.1385646]
[1769313662373,2.569992,126.62,126.59,4.74941206]
[1769313662596,2.569992,126.62,126.6,2.1385646]
[1769313663284,2.569992,126.62,126.59,4.74941206]
[1769313674398,2.569992,126.62,126.59,2.1385646]
[1769313674719,2.569992,126.62,126.6,4.72809892]
[1769313675005,2.88057374,126.64,126.61,4.72809892]
[1769313675393,2.88057374,126.64,126.62,4.72809892]
[1769313675981,0.2,126.64,126.62,4.72809892]
[1769313678207,0.2,126.64,126.63,2.58953432]
[1769313680594,0.2,126.65,126.63,4.72809892]
[1769313681001,2.88057374,126.65,126.63,4.72809892]
[1769313681812,0.2,126.65,126.63,4.72809892]
[1769313682910,0.2,126.65,126.63,4.72465937]
[1769313683216,2.88057374,126.65,126.63,4.72465937]
[1769313683706,0.2,126.65,126.64,2.58953432]
[1769313684514,0.2,126.65,126.63,4.72465937]
[1769313685315,2.88057374,126.65,126.63,4.72465937]
[1769313686418,0.2,126.65,126.63,4.72465937]
[1769313699933,3.00804529,126.65,126.64,2.13512505]
[1769313700127,0.2,126.66,126.65,2.59249842]
[1769313700319,0.2,126.66,126.65,2.13512505]
[1769313702242,0.2,126.67,126.65,12.62339922]
[1769313702627,0.2,126.67,126.66,2.13512505]
[1769313703441,0.2,126.67,126.66,4.72762347]
[1769313708057,3.00804529,126.68,126.66,12.62277584]
[1769313713751,0.2,126.68,126.67,2.13512505]
[1769313714530,3.00804529,126.68,126.67,2.13512505]
[1769313716055,3.00804529,126.68,126.66,12.62277584]
[1769313718164,0.2,126.68,126.67,2.59249842]
[1769313718665,0.2,126.68,126.67,4.72762347]
[1769313719960,3.00804529,126.68,126.67,2.13512505]
[1769313720262,3.00804529,126.68,126.66,2.13512505]
[1769313721154,3.00804529,126.68,126.67,2.13512505]
[1769313722454,3.00804529,126.68,126.66,10.03023558]
[1769313724237,3.00804529,126.68,126.67,2.13512505]
[1769313726039,3.00804529,126.68,126.66,10.03023558]
[1769313727875,3.00804529,126.68,126.66,12.7377558]
[1769313735166,0.2,126.68,126.66,12.7377558]
[1769313737276,0.2,126.68,126.67,2.64474143]
[1769313737881,0.2,126.68,126.66,12.67497701]
[1769313740383,0.2,126.68,126.67,2.64474143]
[1769313740785,0.2,126.68,126.67,4.77986648]
[1769313741189,1e-08,126.68,126.67,4.77986648]
[1769313741482,0.2,126.72,126.68,2.64474143]
[1769313741483,2.79037431,126.71,126.68,2.64474143]
[1769313741662,2.79037431,126.71,126.68,4.77986648]
[1769313743197,2.79037431,126.71,126.69,2.13512505]
[1769313745095,2.99037431,126.72,126.69,4.77794763]
[1769313745389,2.99037431,126.72,126.69,2.1332062]
[1769313745764,2.99037431,126.72,126.69,4.77794763]
[1769313745965,2.99037431,126.72,126.69,2.1332062]
[1769313747006,2.99037431,126.72,126.69,4.77794763]
[1769313751106,2.99037431,126.72,126.7,4.77794763]
[1769313752192,2.99037431,126.72,126.7,2.1332062]
[1769313756421,2.99037431,126.72,126.69,12.67078759]
[1769313758822,2.99037431,126.72,126.7,2.1332062]
[1769313759811,0.2,126.72,126.7,12.78597678]
[1769313761729,0.2,126.72,126.71,4.89341097]
[1769313762020,0.2,126.72,126.7,12.78597678]
[1769313762920,0.2,126.72,126.71,2.1332062]
[1769313763925,0.2,126.72,126.7,12.78597678]
[1769313796031,2.87230436,126.72,126.7,12.78597678]
[1769313800447,2.87230436,126.72,126.7,10.02577201]
[1769313800634,2.87230436,126.72,126.7,7.89256581]
[1769313801945,2.87230436,126.72,126.7,10.02577201]
[1769313804950,2.87230436,126.72,126.7,10.02530481]
[1769313807929,2.87230436,126.72,126.7,12.74770174]
[1769313809956,0.2,126.72,126.7,12.74770174]
[1769313810555,2.87230436,126.72,126.7,12.74770174]
[1769313815474,0.2,126.72,126.7,12.74770174]
[1769313815966,0.2,126.73,126.71,2.83677483]
[1769313819260,3.07891817,126.73,126.7,12.86207964]
[1769313829470,3.07891817,126.73,126.71,4.96951383]
[1769313831159,3.07891817,126.73,126.71,12.86135785]
[1769313831558,0.2,126.73,126.71,12.86135785]
[1769313835081,3.07891817,126.73,126.71,12.86135785]
[1769313836279,3.07891817,126.73,126.71,10.02458302]
[1769313838287,3.07891817,126.73,126.71,12.86135785]
[1769313840294,0.2,126.73,126.71,12.86135785]
[1769313841193,3.07891817,126.73,126.71,12.86135785]
[1769313842069,3.07891817,126.73,126.71,10.02458302]
[1769313843473,3.07891817,126.73,126.71,12.82004602]
[1769313848787,3.02578475,126.74,126.72,2.795463]
[1769313849289,3.02578475,126.74,126.72,4.928202]
[1769313849480,3.02578475,126.74,126.72,2.795463]
[1769313849675,3.02578475,126.74,126.71,12.82004602]
[1769313851793,3.02578475,126.74,126.72,2.132739]
[1769313852571,0.2,126.74,126.72,2.132739]
[1769313852777,0.2,126.74,126.73,2.61245199]
[1769313853272,0.2,126.74,126.72,2.132739]
[1769313853473,0.2,126.74,126.72,4.74519099]
[1769313855095,0.2,126.74,126.72,12.63654296]
[1769313856999,0.2,126.74,126.73,2.132739]
[1769313857303,0.2,126.74,126.73,4.74519099]
[1769313857688,0.2,126.74,126.73,2.132739]
[1769313865110,0.2,126.74,126.73,4.74519099]
[1769313865609,0.2,126.74,126.73,2.132739]
[1769313866309,3.01862904,126.74,126.72,10.50380396]
[1769313866604,3.01862904,126.74,126.72,12.63654296]
[1769313866785,0.2,126.74,126.72,12.63654296]
[1769313867104,0.2,126.74,126.72,12.63567721]
[1769313869285,0.2,126.74,126.73,2.13187325]
[1769313869608,0.2,126.74,126.73,10.02266469]
[1769313870611,2.81862904,126.75,126.73,10.02266469]
[1769313875316,2.81862904,126.75,126.73,12.85064912]
[1769313875508,2.89781199,126.76,126.74,2.13187325]
[1769313876418,2.89781199,126.76,126.74,10.02194557]
[1769313877217,2.89781199,126.76,126.74,12.84993]
[1769313883114,2.89781199,126.77,126.75,10.0214196]
[1769313883299,2.89781199,126.77,126.75,2.13187325]
[1769313885130,2.89781199,126.78,126.76,2.13187325]
[1769313886215,2.89781199,126.78,126.76,10.02067054]
[1769313887126,2.89781199,126.78,126.76,7.88879729]
[1769313889422,2.89781199,126.78,126.75,2.13187325]
[1769313890534,2.89781199,126.78,126.76,7.88879729]
[1769313893419,2.89781199,126.78,126.74,9.00257648]
[1769313893622,2.89781199,126.78,126.74,11.13444973]
[1769313909761,2.89781199,126.78,126.74,9.00257648]
[1769313909965,2.89781199,126.78,126.74,11.13444973]
[1769313928999,2.89781199,126.78,126.74,11.1338954]
[1769313933491,0.2,126.78,126.76,1.20225532]
[1769313933999,2.9738469,126.78,126.75,3.33523287]
[1769313937908,0.2,126.78,126.76,1.21036014]
[1769313938504,2.9738469,126.78,126.75,11.23114467]
[1769313966929,2.9738469,126.78,126.76,1.25028144]
[1769313969930,2.9738469,126.78,126.75,10.02078453]
[1769313970116,2.9738469,126.78,126.75,11.27434898]
[1769313973306,2.9738469,126.78,126.76,2.13131892]
[1769313974319,2.9738469,126.78,126.76,10.02015644]
[1769313975332,2.9738469,126.78,126.76,7.88883752]
[1769313975511,2.9738469,126.78,126.76,10.02015644]
[1769313989234,2.9738469,126.78,126.76,7.88883752]
[1769313989628,2.9738469,126.78,126.76,10.02015644]
[1769313990955,2.9738469,126.78,126.76,10.01976398]
[1769313995152,0.2,126.78,126.76,11.29827405]
[1769313998550,0.2,126.78,126.76,9.16734759]
[1769313998758,2.98076624,126.78,126.76,11.29827405]
[1769313999457,2.48076624,126.78,126.76,11.29827405]
[1769313999644,0.2,126.79,126.76,11.29827405]
[1769314001349,0.2,126.79,126.76,9.16734759]
[1769314001558,2.98076624,126.79,126.76,9.16734759]
[1769314001762,2.98076624,126.79,126.76,7.88883752]
[1769314004459,2.98076624,126.79,126.74,24.66097708]
[1769314005543,2.98076624,126.79,126.75,7.88937855]
[1769314006236,2.98076624,126.79,126.75,10.02030501]
[1769314011666,2.98076624,126.79,126.75,12.82603324]
[1769314015171,2.98076624,126.79,126.76,4.93665469]
[1769314015351,0.2,126.79,126.77,4.93665469]
[1769314015862,0.2,126.79,126.77,2.80572823]
[1769314016068,2.98076624,126.79,126.76,4.93665469]
[1769314016257,2.98076624,126.79,126.76,2.80572823]
[1769314017088,2.98076624,126.79,126.75,32.54989911]
[1769314017972,2.98076624,126.79,126.76,2.80572823]
[1769314020876,2.98076624,126.79,126.76,10.69464938]
[1769314023787,2.98076624,126.79,126.76,2.80572823]
[1769314032371,5.1116927,126.79,126.75,5.84347159]
[1769314032572,2.63868608,126.78,126.75,2.48752856]
[1769314033177,2.63868608,126.78,126.74,2.48752856]
[1769314033178,2.63868608,126.77,126.74,2.48752856]
[1769314033370,2.63868608,126.77,126.73,64.22375733]
[1769314033685,2.63868608,126.77,126.73,40.55231693]
[1769314033884,2.63868608,126.77,126.74,2.48752856]
[1769314044101,2.13092646,126.75,126.7,2.48752856]
[1769314044392,2.63868608,126.74,126.71,2.48752856]
[1769314045189,2.63868608,126.74,126.71,4.61845502]
[1769314045389,2.63868608,126.74,126.71,12.51043952]
[1769314050897,2.63868608,126.74,126.71,12.51208635]
[1769314071119,2.63868608,126.74,126.71,2.48752856]
[1769314073836,2.51692011,126.73,126.7,10.40639921]
[1769314074530,2.51692011,126.73,126.71,2.51401318]
[1769314079926,2.51692011,126.73,126.7,2.51401318]
[1769314080229,2.51692011,126.73,126.69,12.53961932]
[1769314080615,2.51692011,126.73,126.7,2.51401318]
[1769314081729,2.51692011,126.73,126.69,7.89303285]
[1769314081932,2.51692011,126.73,126.69,2.51401318]
[1769314082111,2.51692011,126.72,126.69,2.51401318]
[1769314083427,2.51692011,126.72,126.69,4.64658647]
[1769314083608,2.51692011,126.72,126.69,12.53985831]
[1769314092918,2.21878851,126.7,126.68,2.22890235]
[1769314093121,2.21878851,126.7,126.68,4.36147564]
[1769314093634,2.21878851,126.72,126.69,4.36147564]
[1769314093824,2.21878851,126.72,126.7,4.36147564]
[1769314097519,2.13257329,126.75,126.7,4.36147564]
[1769314097722,2.21878851,126.74,126.71,4.36147564]
[1769314104952,2.21878851,126.74,126.71,2.22890235]
[1769314105254,2.21878851,126.74,126.68,19.73385248]
[1769314105255,2.21878851,126.72,126.69,12.25462243]
[1769314107255,2.21878851,126.72,126.69,2.22890235]
[1769314107458,2.21878851,126.71,126.68,10.1225992]
[1769314107934,2.21878851,126.71,126.68,2.22890235]
[1769314108135,2.21878851,126.71,126.68,10.12276305]
[1769314110065,2.21878851,126.71,126.68,12.25533634]
[1769314111066,4.3513618,126.73,126.69,2.22890235]
[1769314111361,2.21878851,126.72,126.69,2.22890235]
[1769314111745,2.21878851,126.72,126.69,2.13257329]
[1769314112776,2.21878851,126.72,126.68,10.12276305]
[1769314113064,2.21878851,126.72,126.68,12.2562746]
[1769314126080,2.21878851,126.72,126.69,2.13351155]
[1769314139799,2.21878851,126.72,126.69,1.63351155]
[1769314141794,2.21878851,126.72,126.68,2.22890235]
[1769314142103,2.21878851,126.72,126.68,2.13351155]
[1769314142685,2.21878851,126.72,126.68,4.24312252]
[1769314142886,4.35230006,126.72,126.67,40.17486837]
[1769314143201,2.21878851,126.72,126.68,2.04593492]
[1769314144986,1.99896887,126.71,126.68,2.04593492]
[1769314145611,1.99896887,126.71,126.68,4.17944647]
[1769314154517,1.99896887,126.71,126.68,2.04593492]
[1769314164928,2.12958245,126.72,126.69,2.13623889]
[1769314171413,2.12958245,126.72,126.69,4.26975044]
[1769314172929,2.12958245,126.72,126.69,4.26941451]
[1769314177137,2.13409167,126.74,126.71,4.14937656]
[1769314178349,2.13409167,126.74,126.71,2.01620094]
[1769314180842,2.13409167,126.73,126.69,4.14937656]
[1769314181346,2.13409167,126.73,126.7,2.01620094]
[1769314182344,2.13409167,126.73,126.69,2.01620094]
[1769314188848,2.13409167,126.73,126.69,4.14937656]
[1769314201139,2.13409167,126.73,126.69,2.01620094]
[1769314202337,2.13409167,126.72,126.67,12.04378524]
[1769314202558,2.13409167,126.71,126.67,12.04378524]
[1769314202734,2.13409167,126.71,126.68,2.06854654]
[1769314202934,2.13409167,126.71,126.67,2.06854654]
[1769314203143,2.04790901,126.7,126.67,2.06854654]
[1769314204639,2.04790901,126.7,126.67,1.56854654]
[1769314206260,2.04790901,126.7,126.67,3.70172216]
[1769314210944,2.04790901,126.7,126.68,2.13317562]
[1769314214269,2.04790901,126.7,126.67,3.70172216]
[1769314216983,2.06755368,126.67,126.63,0.2]
[1769314217268,2.13317562,126.68,126.63,0.2]
[1769314217269,2.06755368,126.66,126.63,0.2]
[1769314225375,4.2007293,126.66,126.63,0.2]
[1769314226174,2.06755368,126.65,126.63,0.2]
[1769314228586,2.06755368,126.65,126.63,2.11326751]
[1769314232089,4.2007293,126.66,126.63,2.11326751]
[1769314232260,2.06755368,126.66,126.63,2.11326751]
[1769314234895,4.20342097,126.66,126.63,2.11326751]
[1769314236492,2.06755368,126.66,126.63,2.11326751]
[1769314240402,2.06755368,126.66,126.63,0.2]
[1769314240704,2.00847685,126.65,126.63,0.2]
[1769314241500,2.00847685,126.65,126.63,2.39703885]
[1769314249107,2.00847685,126.69,126.64,2.19703885]
[1769314249308,2.00847685,126.68,126.65,4.33290614]
[1769314249604,2.00847685,126.68,126.65,2.19703885]
[1769314264720,2.00847685,126.68,126.63,0.2]
[1769314264925,2.00847685,126.68,126.64,2.38376428]
[1769314265320,2.00847685,126.68,126.64,4.51963157]
[1769314266824,2.26416056,126.67,126.63,2.58376428]
[1769314267029,2.26416056,126.66,126.63,2.58376428]
[1769314267730,2.26416056,126.66,126.63,4.71963157]
[1769314269134,2.26416056,126.65,126.63,0.2]
[1769314271329,2.26416056,126.64,126.63,0.2]
[1769314271626,4.40002785,126.64,126.63,0.2]
[1769314273122,2.26416056,126.64,126.63,0.2]
[1769314274239,2.26416056,126.64,126.62,0.2]
[1769314279233,4.40002785,126.64,126.62,0.2]
[1769314281340,2.26416056,126.64,126.62,0.2]
[1769314288748,2.25200721,126.63,126.62,0.2]
[1769314289955,4.3878745,126.63,126.62,0.2]
[1769314290257,4.3878745,126.63,126.61,0.2]
[1769314292059,4.3878745,126.63,126.61,2.5044966]
[1769314294870,4.38898634,126.63,126.61,2.5044966]
[1769314296150,2.25200721,126.63,126.61,2.5044966]
[1769314304670,10.31739077,126.65,126.61,2.5044966]
[1769314304878,2.42133555,126.65,126.62,2.56593431]
[1769314306663,12.45378053,126.66,126.62,2.56593431]
[1769314306879,2.42133555,126.65,126.62,2.56593431]
[1769314310763,12.45378053,126.66,126.63,2.56593431]
[1769314315392,2.42133555,126.64,126.61,2.76593431]
[1769314315687,2.13697913,126.63,126.61,2.76593431]